[Event "23rd OIBM 2019"]
[Site "Gmund am Tegernsee"]
[Date "2019.10.26"]
[Round "1.36"]
[White "Badelka, Olga"]
[Black "Schrems, Hermann"]
[Result "1-0"]
[ECO "D82"]
[WhiteElo "2413"]
[BlackElo "2108"]
[Annotator "NA"]
[PlyCount "91"]
[EventDate "2019.10.17"]
[EventType "swiss"]
[EventCountry "GER"]
[SourceTitle "playchess.com"]
[Source "ChessBase"]
[SourceQuality "1"]
[TimeControl "40/5400+30:1800+30"]

1. c4 {[%emt 0:00:00]} Nf6 {[%emt 0:00:00]} 2. Nc3 {[%emt 0:00:21]} g6 {[%emt 0:00:00]} 3. d4 {[%emt 0:00:18]} d5 {[%emt 0:00:05]} 4. Bf4 {[%emt 0:00:23]} Bg7 {[%emt 0:01:05]} 5. e3 {[%emt 0:00:06]} c5 {[%emt 0:00:16]} 6. dxc5 {[%emt 0:01:13]} Qa5 {[%emt 0:00:15]} 7. Rc1 {[%emt 0:01:59]} Ne4 {[%emt 0:01:32]} 8. Nge2 {[%emt 0:22:56]} dxc4 {[%emt 0:02:59]} 9. Qa4+ {[%emt 0:00:50]} Qxa4 {[%emt 0:03:46]} 10. Nxa4 {[%emt 0:00:04]} Nc6 {[%emt 0:03:15]} 11. Rxc4 {[%emt 0:01:40]} f5 {[%emt 0:00:16]} 12. f3 {[%emt 0:04:08]} Be6 {[%emt 0:04:03]} 13. Rc1 {[%emt 0:01:16]} Nf6 {[%emt 0:01:20]} 14. Nec3 {[%emt 0:02:07]} O-O {[%emt 0:04:10]} 15. Bb5 {[%emt 0:02:45]} Nb4 {[%emt 0:00:18]} 16. a3 {[%emt 0:05:03]} Nbd5 {[%emt 0:02:21]} 17. Nxd5 {[%emt 0:01:57]} Nxd5 {[%emt 0:00:08]} 18. Bc4 {[%emt 0:03:43]} Nxf4 {[%emt 0:00:16]} 19. exf4 {[%emt 0:00:05]} Bxc4 {[%emt 0:00:06]} 20. Rxc4 {[%emt 0:00:03]} Rfd8 {[%emt 0:00:09]} 21. Ke2 {[%emt 0:02:07]} e5 {[%emt 0:06:21]} 22. fxe5 {[%emt 0:02:04]} Bxe5 {[%emt 0:00:19]} 23. f4 {[%emt 0:01:39]} Bc7 {[%emt 0:04:37]} 24. Nc3 {[%emt 0:02:39]} Rd7 {[%emt 0:02:58]} 25. Rd1 {[%emt 0:00:48]} Re8+ {[%emt 0:00:27]} 26. Kf3 {[%emt 0:00:48]} Rxd1 {[%emt 0:01:32]} 27. Nxd1 {[%emt 0:00:04]} Kf7 {[%emt 0:00:12]} 28. Ne3 {[%emt 0:03:07]} Rd8 {[%emt 0:00:13]} 29. Ra4 {[%emt 0:00:50]} a6 {[%emt 0:04:17]} 30. Rb4 {[%emt 0:00:16]} Rb8 {[%emt 0:00:02]} 31. g3 {[%emt 0:06:50]} Ke6 {[%emt 0:00:26]} 32. h3 {[%emt 0:06:04]} Bd8 {[%emt 0:02:44]} 33. Rd4 {[%emt 0:04:04]} Be7 {[%emt 0:01:26]} 34. Rc4 {[%emt 0:02:11]} b5 {[%emt 0:03:40]} 35. Rc2 {[%emt 0:02:30]} Rd8 {[%emt 0:05:25]} 36. b4 {[%emt 0:01:32]} Rd7 {[%emt 0:00:07]} 37. g4 {[%emt 0:02:31]} Bd8 {[%emt 0:00:57]} 38. gxf5+ {[%emt 0:01:14]} gxf5 {[%emt 0:00:21]} 39. c6 {[%emt 0:01:12]} Rf7 {[%emt 0:03:49]} 40. Rc5 {[%emt 0:04:11]} Bc7 {[%emt 0:00:07]} 41. Rd5 {[%emt 0:32:10]} Bd6 {[%emt 0:32:51]} 42. Rd1 {[%emt 0:00:07]} Rc7 {[%emt 0:00:17]} 43. Nxf5 {[%emt 0:00:45]} Be5 {[%emt 0:04:42]} 44. Re1 {[%emt 0:00:40]} Kxf5 {[%emt 0:00:02]} 45. Rxe5+ {[%emt 0:00:04]} Kf6 {[%emt 0:00:11]} 46. Rc5 {[%emt 0:00:03]} 1-0

[Event "23rd OIBM 2019"]
[Site "Gmund am Tegernsee"]
[Date "2019.10.26"]
[Round "1.38"]
[White "Gschnitzer, Adrian"]
[Black "Proschmann, Tino"]
[Result "1-0"]
[ECO "B48"]
[WhiteElo "2412"]
[BlackElo "2106"]
[Annotator "NA"]
[PlyCount "67"]
[EventDate "2019.10.17"]
[EventType "swiss"]
[EventCountry "GER"]
[SourceTitle "playchess.com"]
[Source "ChessBase"]
[SourceQuality "1"]
[TimeControl "40/5400+30:1800+30"]

1. e4 {[%emt 0:04:54]} c5 {[%emt 0:00:00]} 2. Nf3 {[%emt 0:00:07]} e6 {[%emt 0:00:00]} 3. d4 {[%emt 0:00:06]} cxd4 {[%emt 0:00:09]} 4. Nxd4 {[%emt 0:00:06]} Nc6 {[%emt 0:00:24]} 5. Nc3 {[%emt 0:00:08]} Qc7 {[%emt 0:00:12]} 6. Be3 {[%emt 0:00:13]} a6 {[%emt 0:00:16]} 7. Bd3 {[%emt 0:00:43]} Nf6 {[%emt 0:00:59]} 8. O-O {[%emt 0:00:25]} Nxd4 {[%emt 0:00:23]} 9. Bxd4 {[%emt 0:00:15]} Bc5 {[%emt 0:00:07]} 10. Be2 {[%emt 0:01:44]} d6 {[%emt 0:02:45]} 11. a4 {[%emt 0:05:11]} Bd7 {[%emt 0:05:38]} 12. f4 {[%emt 0:07:37]} Qb6 {[%emt 0:11:42]} 13. Bxc5 {[%emt 0:00:25]} Qxc5+ {[%emt 0:00:21]} 14. Kh1 {[%emt 0:00:19]} Bc6 {[%emt 0:07:38]} 15. Bf3 {[%emt 0:00:30]} O-O {[%emt 0:08:05]} 16. Qe1 {[%emt 0:11:34]} Rad8 {[%emt 0:15:58]} 17. Rd1 {[%emt 0:10:48]} Rfe8 {[%emt 0:18:43]} 18. Rf2 {[%emt 0:05:58]} d5 {[%emt 0:13:04]} 19. Rfd2 {[%emt 0:00:38]} dxe4 {[%emt 0:04:37]} 20. Rxd8 {[%emt 0:07:23]} exf3 {[%emt 0:00:11]} 21. Rxe8+ {[%emt 0:01:01]} Nxe8 {[%emt 0:00:19]} 22. h3 {[%emt 0:00:32]} h6 {[%emt 0:06:03]} 23. Kh2 {[%emt 0:01:26]} fxg2 {[%emt 0:00:37]} 24. Rd3 {[%emt 0:05:22]} Nf6 {[%emt 0:00:51]} 25. Qe3 {[%emt 0:01:59]} Qb4 {[%emt 0:01:31]} 26. Rd8+ {[%emt 0:00:55]} Kh7 {[%emt 0:00:07]} 27. Qd3+ {[%emt 0:00:02]} g6 {[%emt 0:01:10]} 28. Qd4 {[%emt 0:00:07]} Qe7 {[%emt 0:01:29]} 29. b4 {[%emt 0:02:08]} Kg7 {[%emt 0:00:39]} 30. b5 {[%emt 0:00:56]} axb5 {[%emt 0:00:02]} 31. axb5 {[%emt 0:00:04]} Bd5 {[%emt 0:00:17]} 32. Qb6 {[%emt 0:04:29]} Qb4 {[%emt 0:00:24]} 33. Qd6 {[%emt 0:00:42]} Qd4 {[%emt 0:00:13]} 34. Qf8+ {[%emt 0:00:07]} 1-0

[Event "23rd OIBM 2019"]
[Site "Gmund am Tegernsee"]
[Date "2019.10.26"]
[Round "1.39"]
[White "Astengo, Corrado"]
[Black "Manu David Suthandram R"]
[Result "1/2-1/2"]
[ECO "B32"]
[WhiteElo "2105"]
[BlackElo "2403"]
[Annotator "NA"]
[PlyCount "59"]
[EventDate "2019.10.17"]
[EventType "swiss"]
[EventCountry "GER"]
[SourceTitle "playchess.com"]
[Source "ChessBase"]
[SourceQuality "1"]
[TimeControl "40/5400+30:1800+30"]

1. e4 {[%emt 0:00:00]} c5 {[%emt 0:00:00]} 2. Nf3 {[%emt 0:00:00]} Nc6 {[%emt 0:00:00]} 3. d4 {[%emt 0:00:00]} cxd4 {[%emt 0:00:04]} 4. Nxd4 {[%emt 0:00:00]} e5 {[%emt 0:00:09]} 5. Nb5 {[%emt 0:00:11]} d6 {[%emt 0:00:08]} 6. N1c3 {[%emt 0:00:53]} a6 {[%emt 0:00:07]} 7. Na3 {[%emt 0:00:07]} Be6 {[%emt 0:00:05]} 8. Nc4 {[%emt 0:01:19]} Nf6 {[%emt 0:00:17]} 9. Bg5 {[%emt 0:01:14]} Nd4 {[%emt 0:00:07]} 10. Bd3 {[%emt 0:02:20]} Be7 {[%emt 0:01:24]} 11. Bxf6 {[%emt 0:02:56]} Bxf6 {[%emt 0:00:14]} 12. Ne3 {[%emt 0:00:13]} Bg5 {[%emt 0:00:37]} 13. Ncd5 {[%emt 0:01:27]} O-O {[%emt 0:02:15]} 14. O-O {[%emt 0:02:56]} Rc8 {[%emt 0:07:46]} 15. c3 {[%emt 0:03:30]} Nc6 {[%emt 0:00:07]} 16. Qe2 {[%emt 0:03:20]} Ne7 {[%emt 0:02:15]} 17. Bc4 {[%emt 0:04:06]} Bxe3 {[%emt 0:04:45]} 18. Nxe3 Qc7 {[%emt 0:05:18]} 19. Bb3 {[%emt 0:05:07]} Qc6 20. Qd3 {[%emt 0:06:50]} Rfd8 {[%emt 0:07:45]} 21. Rad1 {[%emt 0:02:32]} Qb6 {[%emt 0:07:16]} 22. Qc2 a5 {[%emt 0:13:40]} 23. Rd2 {[%emt 0:05:14]} Rc5 {[%emt 0:10:35]} 24. Rfd1 {[%emt 0:01:26]} Qc6 {[%emt 0:02:51]} 25. Nd5 {[%emt 0:00:53]} Bxd5 {[%emt 0:06:14]} 26. Bxd5 {[%emt 0:01:57]} Nxd5 {[%emt 0:02:48]} 27. Rxd5 Rxd5 {[%emt 0:02:55]} 28. Rxd5 {[%emt 0:00:33]} b6 {[%emt 0:00:04]} 29. Qd3 f6 30. Qd1 1/2-1/2

[Event "23rd OIBM 2019"]
[Site "Gmund am Tegernsee"]
[Date "2019.10.26"]
[Round "1.40"]
[White "Miller, Eduard"]
[Black "Hallmann, Norbert"]
[Result "1-0"]
[ECO "A10"]
[WhiteElo "2402"]
[BlackElo "2105"]
[Annotator "NA RC"]
[PlyCount "91"]
[EventDate "2019.10.17"]
[EventType "swiss"]
[EventCountry "GER"]
[SourceTitle "playchess.com"]
[Source "ChessBase"]
[SourceQuality "1"]
[TimeControl "40/5400+30:1800+30"]

1. c4 {[%emt 0:01:24]} f5 {[%emt 0:00:00]} 2. Nc3 {[%emt 0:00:06]} Nf6 {[%emt 0:00:00]} 3. d4 {[%emt 0:00:09]} e6 {[%emt 0:00:07]} 4. Nf3 {[%emt 0:02:06]} Be7 {[%emt 0:00:39]} 5. d5 {[%emt 0:04:08]} d6 {[%emt 0:08:18]} 6. dxe6 {[%emt 0:04:43]} Bxe6 {[%emt 0:00:18]} 7. Nd4 {[%emt 0:00:37]} Bd7 {[%emt 0:00:49]} 8. g3 {[%emt 0:00:26]} Nc6 {[%emt 0:01:10]} 9. Bg2 {[%emt 0:00:12]} O-O {[%emt 0:01:03]} 10. O-O {[%emt 0:00:29]} Qe8 {[%emt 0:02:17]} 11. Re1 {[%emt 0:15:15]} Qh5 {[%emt 0:09:19]} 12. Ndb5 {[%emt 0:09:17]} Rac8 {[%emt 0:08:15]} 13. c5 {[%emt 0:05:01]} dxc5 {[%emt 0:08:19]} 14. Nd5 {[%emt 0:05:05]} Nxd5 {[%emt 0:03:35]} 15. Qxd5+ {[%emt 0:09:23]} Qf7 {[%emt 0:00:34]} 16. Nxa7 {[%emt 0:02:24]} Be6 {[%emt 0:14:54]} 17. Nxc6 {[%emt 0:00:19]} Bxd5 {[%emt 0:00:35]} 18. Bxd5 {[%emt 0:00:07]} bxc6 {[%emt 0:00:16]} 19. Bxf7+ {[%emt 0:00:06]} Kxf7 {[%emt 0:00:15]} 20. e4 {[%emt 0:02:54]} fxe4 {[%emt 0:01:57]} 21. Rxe4 {[%emt 0:01:12]} Rb8 {[%emt 0:03:17]} 22. a4 {[%emt 0:08:12]} Rb4 {[%emt 0:07:11]} 23. Rxb4 {[%emt 0:01:03]} cxb4 {[%emt 0:00:06]} 24. b3 {[%emt 0:05:03]} Bf6 {[%emt 0:07:16]} 25. Ra2 {[%emt 0:06:28]} Rd8 {[%emt 0:04:59]} 26. Kg2 {[%emt 0:00:16]} Rd3 {[%emt 0:01:56]} 27. a5 {[%emt 0:00:19]} Bd4 {[%emt 0:02:38]} 28. Rd2 {[%emt 0:05:19]} Rxd2 {[%emt 0:00:19]} 29. Bxd2 {[%emt 0:00:05]} c5 {[%emt 0:08:50]} 30. a6 {[%emt 0:00:09]} c4 {[%emt 0:00:13]} 31. bxc4 {[%emt 0:00:11]} b3 {[%emt 0:00:08]} 32. Bc1 {[%emt 0:00:12]} g6 {[%emt 0:01:48]} 33. Bb2 {[%emt 0:08:52]} Ba7 {[%emt 0:01:29]} 34. f4 {[%emt 0:00:43]} Ke6 {[%emt 0:00:28]} 35. g4 {[%emt 0:00:54]} Kd6 {[%emt 0:01:06]} 36. f5 {[%emt 0:00:17]} gxf5 {[%emt 0:00:34]} 37. gxf5 {[%emt 0:00:04]} Kc6 {[%emt 0:00:49]} 38. f6 {[%emt 0:00:21]} Bc5 {[%emt 0:00:41]} 39. f7 {[%emt 0:00:14]} Bf8 {[%emt 0:01:00]} 40. Bd4 {[%emt 0:01:08]} b2 {[%emt 0:00:31]} 41. Bxb2 {[%emt 0:30:05]} Kb6 {[%emt 0:30:09]} 42. Kf3 {[%emt 0:00:07]} Kxa6 {[%emt 0:00:22]} 43. Ke4 {[%emt 0:00:05]} Kb7 {[%emt 0:00:00]} 44. Kd5 {[%emt 0:00:00]} c6+ {[%emt 0:00:00]} 45. Ke6 {[%emt 0:00:00]} Kc8 {[%emt 0:00:00]} 46. Be5 {[%emt 0:00:00]} 1-0

[Event "23rd OIBM 2019"]
[Site "Gmund am Tegernsee"]
[Date "2019.10.26"]
[Round "1.41"]
[White "Ries, Berthold"]
[Black "Wolf, Vincent"]
[Result "1-0"]
[ECO "B09"]
[WhiteElo "1854"]
[BlackElo "1491"]
[Annotator "NA RC"]
[PlyCount "120"]
[EventDate "2019.10.17"]
[EventType "swiss"]
[EventCountry "GER"]
[SourceTitle "playchess.com"]
[Source "ChessBase"]
[SourceQuality "1"]
[TimeControl "40/5400+30:1800+30"]

1. e4 {[%emt 0:00:00]} d6 {[%emt 0:00:00]} 2. d4 {[%emt 0:00:00]} Nf6 {[%emt 0:00:00]} 3. Nc3 {[%emt 0:00:00]} g6 {[%emt 0:00:00]} 4. f4 {[%emt 0:00:00]} Bg7 {[%emt 0:00:05]} 5. Nf3 {[%emt 0:00:11]} O-O {[%emt 0:00:08]} 6. Bd3 {[%emt 0:00:13]} a6 {[%emt 0:01:03]} 7. a4 {[%emt 0:00:55]} Nc6 {[%emt 0:00:08]} 8. O-O {[%emt 0:01:36]} Bg4 {[%emt 0:00:16]} 9. Be3 {[%emt 0:05:26]} Nh5 {[%emt 0:00:42]} 10. Be2 {[%emt 0:03:52]} e5 {[%emt 0:05:36]} 11. fxe5 {[%emt 0:00:43]} dxe5 {[%emt 0:00:16]} 12. d5 {[%emt 0:04:08]} Ne7 {[%emt 0:01:52]} 13. h3 {[%emt 0:10:05]} Bd7 {[%emt 0:01:11]} 14. Nh2 {[%emt 0:14:09]} Ng3 {[%emt 0:01:02]} 15. Rf3 {[%emt 0:01:23]} Nxe2+ {[%emt 0:00:14]} 16. Qxe2 {[%emt 0:00:34]} f5 {[%emt 0:00:55]} 17. Bc5 {[%emt 0:08:26]} b6 {[%emt 0:03:26]} 18. Ba3 {[%emt 0:03:44]} c5 {[%emt 0:00:23]} 19. dxc6 {[%emt 0:00:53]} Bxc6 {[%emt 0:01:22]} 20. Rd3 {[%emt 0:00:57]} Qc7 {[%emt 0:01:02]} 21. Bd6 {[%emt 0:01:21]} Qb7 {[%emt 0:00:19]} 22. Re1 {[%emt 0:04:37]} fxe4 {[%emt 0:02:29]} 23. Nxe4 {[%emt 0:01:16]} Rf4 {[%emt 0:01:21]} 24. Nc3 {[%emt 0:03:28]} Nd5 {[%emt 0:07:13]} 25. Nxd5 {[%emt 0:04:07]} Bxd5 {[%emt 0:00:29]} 26. Bxe5 {[%emt 0:03:53]} Re4 {[%emt 0:00:34]} 27. Re3 {[%emt 0:02:39]} Bxe5 {[%emt 0:08:57]} 28. Rxe4 {[%emt 0:00:30]} Bxe4 {[%emt 0:00:33]} 29. Qxe4 {[%emt 0:00:24]} Qxe4 {[%emt 0:00:23]} 30. Rxe4 {[%emt 0:00:12]} Bxb2 {[%emt 0:00:05]} 31. Rb4 {[%emt 0:00:28]} Ba3 {[%emt 0:01:27]} 32. Rc4 {[%emt 0:01:29]} Bc5+ {[%emt 0:00:23]} 33. Kf1 {[%emt 0:00:12]} Rf8+ {[%emt 0:00:42]} 34. Nf3 {[%emt 0:00:15]} Re8 {[%emt 0:00:56]} 35. a5 {[%emt 0:00:52]} Ra8 {[%emt 0:02:20]} 36. Ne5 {[%emt 0:02:12]} Rf8+ {[%emt 0:00:35]} 37. Nf3 {[%emt 0:00:10]} Rb8 {[%emt 0:00:36]} 38. Ke2 {[%emt 0:01:04]} Ba3 {[%emt 0:03:59]} 39. Ra4 {[%emt 0:02:49]} Bf8 {[%emt 0:00:44]} 40. c4 {[%emt 0:02:28]} Bc5 {[%emt 0:02:29]} 41. axb6 {[%emt 0:36:11]} Rxb6 {[%emt 0:30:38]} 42. Kd3 {[%emt 0:02:29]} Rb2 {[%emt 0:06:28]} 43. Ke4 {[%emt 0:03:18]} Rxg2 {[%emt 0:01:14]} 44. Rxa6 {[%emt 0:00:15]} Rg3 {[%emt 0:01:25]} 45. h4 {[%emt 0:01:40]} Rg4+ {[%emt 0:03:38]} 46. Kd5 {[%emt 0:01:19]} Bf2 {[%emt 0:00:20]} 47. c5 {[%emt 0:00:45]} Rf4 {[%emt 0:01:15]} 48. c6 {[%emt 0:01:46]} Rf8 {[%emt 0:07:30]} 49. c7 {[%emt 0:02:43]} Bg3 {[%emt 0:02:25]} 50. Ne5 {[%emt 0:00:48]} Re8 {[%emt 0:06:36]} 51. Re6 {[%emt 0:00:55]} Ra8 {[%emt 0:00:24]} 52. Rc6 {[%emt 0:00:00]} Rc8 {[%emt 0:00:00]} 53. Ke6 {[%emt 0:00:00]} Bxe5 {[%emt 0:00:00]} 54. Kxe5 {[%emt 0:00:00]} Kg7 {[%emt 0:00:00]} 55. Kd6 {[%emt 0:00:00]} Kh6 {[%emt 0:00:00]} 56. Rc5 {[%emt 0:00:00]} Rf8 {[%emt 0:00:00]} 57. c8=Q {[%emt 0:00:00]} Rxc8 {[%emt 0:00:00]} 58. Rxc8 {[%emt 0:00:00]} Kh5 {[%emt 0:00:00]} 59. Rc4 {[%emt 0:00:00]} h6 {[%emt 0:00:00]} 60. Ke5 {[%emt 0:00:00]} g5 {[%emt 0:00:00]} 1-0

[Event "23rd OIBM 2019"]
[Site "Gmund am Tegernsee"]
[Date "2019.10.26"]
[Round "1.42"]
[White "Walter, Thomas"]
[Black "Piscopo, Pierluigi"]
[Result "1/2-1/2"]
[ECO "B41"]
[WhiteElo "2102"]
[BlackElo "2398"]
[Annotator "NA"]
[PlyCount "46"]
[EventDate "2019.10.17"]
[EventType "swiss"]
[EventCountry "GER"]
[SourceTitle "playchess.com"]
[Source "ChessBase"]
[SourceQuality "1"]
[TimeControl "40/5400+30:1800+30"]

1. e4 {[%emt 0:00:00]} c5 {[%emt 0:00:00]} 2. Nf3 {[%emt 0:00:00]} e6 {[%emt 0:00:02]} 3. d4 {[%emt 0:00:11]} cxd4 {[%emt 0:00:08]} 4. Nxd4 {[%emt 0:03:16]} a6 {[%emt 0:00:09]} 5. Qf3 {[%emt 0:00:53]} Bc5 {[%emt 0:11:52]} 6. Nb3 {[%emt 0:02:18]} Be7 {[%emt 0:00:11]} 7. Nc3 {[%emt 0:00:43]} Nc6 {[%emt 0:01:24]} 8. a3 {[%emt 0:00:22]} Nf6 {[%emt 0:11:29]} 9. Bf4 {[%emt 0:00:49]} d6 {[%emt 0:02:07]} 10. h3 {[%emt 0:08:16]} Qc7 {[%emt 0:13:56]} 11. Be2 {[%emt 0:05:19]} Rb8 {[%emt 0:05:30]} 12. Qg3 {[%emt 0:05:41]} b5 {[%emt 0:07:57]} 13. Rd1 {[%emt 0:06:50]} b4 {[%emt 0:05:18]} 14. Bxd6 {[%emt 0:29:04]} Bxd6 {[%emt 0:06:28]} 15. Rxd6 {[%emt 0:00:04]} bxc3 {[%emt 0:13:44]} 16. Rxe6+ {[%emt 0:00:37]} Kd8 {[%emt 0:00:25]} 17. Qxg7 {[%emt 0:10:25]} Ne8 {[%emt 0:06:05]} 18. Qxh8 {[%emt 0:05:05]} Bxe6 {[%emt 0:00:04]} 19. Qxc3 {[%emt 0:01:42]} Ne5 {[%emt 0:01:49]} 20. Qd2+ {[%emt 0:03:22]} Qd6 {[%emt 0:02:07]} 21. Qa5+ {[%emt 0:04:36]} Qc7 {[%emt 0:00:17]} 22. Qd2+ {[%emt 0:03:42]} Qd6 {[%emt 0:00:13]} 23. Qa5+ {[%emt 0:03:52]} Qc7 {[%emt 0:00:26]} 1/2-1/2

[Event "23rd OIBM 2019"]
[Site "Gmund am Tegernsee"]
[Date "2019.10.26"]
[Round "1.44"]
[White "Fehmer, Dirk"]
[Black "Atakisi, Umut"]
[Result "1/2-1/2"]
[ECO "A04"]
[WhiteElo "2099"]
[BlackElo "2393"]
[Annotator "NA"]
[PlyCount "51"]
[EventDate "2019.10.17"]
[EventType "swiss"]
[EventCountry "GER"]
[SourceTitle "playchess.com"]
[Source "ChessBase"]
[SourceQuality "1"]
[TimeControl "40/5400+30:1800+30"]

1. Nf3 {[%emt 0:00:38]} c5 {[%emt 0:00:10]} 2. c4 {[%emt 0:00:37]} Nc6 {[%emt 0:00:05]} 3. g3 {[%emt 0:00:47]} e5 {[%emt 0:00:36]} 4. Nc3 {[%emt 0:00:58]} g6 {[%emt 0:01:15]} 5. Bg2 {[%emt 0:02:00]} Bg7 {[%emt 0:00:05]} 6. Rb1 {[%emt 0:02:38]} Nge7 {[%emt 0:01:17]} 7. O-O {[%emt 0:03:05]} d6 {[%emt 0:00:27]} 8. a3 {[%emt 0:01:34]} a5 {[%emt 0:06:52]} 9. Ne1 {[%emt 0:05:47]} Be6 {[%emt 0:02:54]} 10. d3 {[%emt 0:03:31]} O-O {[%emt 0:11:28]} 11. Nc2 {[%emt 0:02:30]} d5 {[%emt 0:03:50]} 12. cxd5 {[%emt 0:16:32]} Nxd5 {[%emt 0:02:57]} 13. Ne3 {[%emt 0:05:43]} Nde7 {[%emt 0:13:00]} 14. Bd2 {[%emt 0:05:32]} Rb8 {[%emt 0:12:20]} 15. Nb5 {[%emt 0:20:12]} b6 {[%emt 0:29:45]} 16. b4 {[%emt 0:08:32]} axb4 {[%emt 0:00:24]} 17. axb4 {[%emt 0:00:07]} Nxb4 {[%emt 0:01:29]} 18. Bxb4 {[%emt 0:00:07]} cxb4 {[%emt 0:00:04]} 19. Rxb4 {[%emt 0:00:07]} Bh6 {[%emt 0:05:47]} 20. Nc4 {[%emt 0:05:08]} Nd5 {[%emt 0:00:10]} 21. Rb3 {[%emt 0:01:24]} Bg7 {[%emt 0:01:03]} 22. Qb1 {[%emt 0:01:54]} Qd7 {[%emt 0:01:38]} 23. Nba3 {[%emt 0:04:02]} Qa7 {[%emt 0:00:02]} 24. Nb5 {[%emt 0:01:02]} Qd7 {[%emt 0:00:09]} 25. Nba3 {[%emt 0:01:48]} Qa7 {[%emt 0:00:31]} 26. Nb5 {[%emt 0:00:11]} 1/2-1/2

[Event "23rd OIBM 2019"]
[Site "Gmund am Tegernsee"]
[Date "2019.10.27"]
[Round "2.4"]
[White "Gareyev, Timur"]
[Black "Faerber, David"]
[Result "1-0"]
[ECO "A06"]
[WhiteElo "2591"]
[BlackElo "2332"]
[Annotator "ChessBase"]
[PlyCount "77"]
[EventDate "2019.10.17"]
[EventType "swiss"]
[EventCountry "GER"]
[SourceTitle "playchess.com"]
[Source "ChessBase"]
[SourceQuality "1"]
[TimeControl "40/5400+30:1800+30"]

1. Nf3 {[%emt 0:00:00]} d5 {[%emt 0:03:54]} 2. e3 {[%emt 0:00:01]} Nf6 {[%emt 0:00:46]} 3. c4 {[%emt 0:00:06]} c6 {[%emt 0:00:09]} 4. b3 {[%emt 0:01:56]} Bf5 {[%emt 0:03:29]} 5. Nh4 {[%emt 0:00:02]} Bg4 {[%emt 0:01:57]} 6. f3 {[%emt 0:00:20]} Bc8 {[%emt 0:04:26]} 7. f4 {[%emt 0:00:12]} g6 {[%emt 0:00:46]} 8. Bb2 {[%emt 0:00:14]} Bg7 {[%emt 0:00:16]} 9. Be2 {[%emt 0:00:36]} O-O {[%emt 0:03:56]} 10. O-O {[%emt 0:00:59]} b6 {[%emt 0:03:37]} 11. Nf3 {[%emt 0:07:33]} Bb7 {[%emt 0:01:39]} 12. Ne5 {[%emt 0:00:23]} Nbd7 {[%emt 0:06:12]} 13. Bf3 {[%emt 0:00:56]} Ne8 {[%emt 0:11:42]} 14. d4 {[%emt 0:02:00]} Nd6 {[%emt 0:11:05]} 15. Nc3 {[%emt 0:00:55]} Nf6 {[%emt 0:03:15]} 16. Qe2 {[%emt 0:04:18]} e6 {[%emt 0:07:44]} 17. Rad1 {[%emt 0:00:02]} Qc7 {[%emt 0:03:37]} 18. Rc1 {[%emt 0:02:22]} Qe7 {[%emt 0:08:03]} 19. Ba3 {[%emt 0:00:19]} Rfc8 {[%emt 0:00:47]} 20. Rfd1 {[%emt 0:01:04]} Qd8 {[%emt 0:03:25]} 21. g4 {[%emt 0:02:41]} Bf8 {[%emt 0:02:50]} 22. Bb2 {[%emt 0:04:18]} Qe7 {[%emt 0:02:12]} 23. Qg2 {[%emt 0:07:25]} Rd8 {[%emt 0:02:08]} 24. h4 {[%emt 0:01:24]} Rac8 {[%emt 0:00:53]} 25. h5 {[%emt 0:00:02]} Bg7 {[%emt 0:01:03]} 26. hxg6 {[%emt 0:01:03]} hxg6 {[%emt 0:00:28]} 27. Ba3 {[%emt 0:00:26]} Qe8 {[%emt 0:04:59]} 28. g5 {[%emt 0:04:31]} Nh7 {[%emt 0:01:24]} 29. Kf2 {[%emt 0:00:31]} Nf5 {[%emt 0:01:45]} 30. Rh1 {[%emt 0:01:48]} c5 {[%emt 0:00:52]} 31. Rh3 {[%emt 0:14:01]} cxd4 {[%emt 0:04:08]} 32. Rch1 {[%emt 0:00:01]} dxe3+ {[%emt 0:00:30]} 33. Kg1 {[%emt 0:01:50]} dxc4 {[%emt 0:00:28]} 34. Rxh7 {[%emt 0:00:41]} e2 {[%emt 0:01:05]} 35. Qxe2 {[%emt 0:00:48]} Bxf3 {[%emt 0:01:09]} 36. Qxf3 {[%emt 0:00:45]} cxb3 {[%emt 0:00:49]} 37. Qh3 {[%emt 0:00:19]} bxa2 {[%emt 0:00:25]} 38. Rxg7+ {[%emt 0:00:10]} Kxg7 {[%emt 0:00:09]} 39. Qh7# {[%emt 0:00:05]} 1-0

[Event "23rd OIBM 2019"]
[Site "Gmund am Tegernsee"]
[Date "2019.10.27"]
[Round "2.5"]
[White "Santagati, Alessandro"]
[Black "Azarov, Sergei"]
[Result "0-1"]
[ECO "A45"]
[WhiteElo "2288"]
[BlackElo "2586"]
[Annotator "ChessBase"]
[PlyCount "80"]
[EventDate "2019.10.17"]
[EventType "swiss"]
[EventCountry "GER"]
[SourceTitle "playchess.com"]
[Source "ChessBase"]
[SourceQuality "1"]
[TimeControl "40/5400+30:1800+30"]

1. d4 {[%emt 0:00:00]} Nf6 {[%emt 0:00:00]} 2. Bf4 {[%emt 0:00:00]} c5 {[%emt 0:00:06]} 3. e3 {[%emt 0:01:31]} Nd5 {[%emt 0:00:15]} 4. Bxb8 {[%emt 0:09:31]} Rxb8 {[%emt 0:00:13]} 5. e4 {[%emt 0:03:58]} Nf4 {[%emt 0:31:53]} 6. Qf3 {[%emt 0:18:40]} Ng6 {[%emt 0:01:21]} 7. dxc5 {[%emt 0:06:19]} e6 {[%emt 0:01:41]} 8. Qg3 {[%emt 0:05:32]} Ra8 {[%emt 0:00:32]} 9. h4 {[%emt 0:13:03]} h5 {[%emt 0:10:32]} 10. Nc3 {[%emt 0:07:34]} Bxc5 {[%emt 0:00:20]} 11. Nb5 {[%emt 0:02:40]} O-O {[%emt 0:04:03]} 12. Nc7 {[%emt 0:04:22]} Qf6 {[%emt 0:03:54]} 13. c3 {[%emt 0:06:40]} Rb8 {[%emt 0:00:27]} 14. Nf3 {[%emt 0:01:59]} d6 {[%emt 0:00:43]} 15. Nb5 {[%emt 0:00:58]} e5 {[%emt 0:12:01]} 16. Qg5 {[%emt 0:04:02]} d5 {[%emt 0:09:13]} 17. Qxf6 {[%emt 0:02:04]} gxf6 {[%emt 0:00:05]} 18. exd5 {[%emt 0:00:41]} a6 {[%emt 0:00:42]} 19. b4 {[%emt 0:01:13]} Be7 {[%emt 0:00:45]} 20. d6 {[%emt 0:01:34]} axb5 {[%emt 0:00:21]} 21. dxe7 {[%emt 0:00:04]} Nxe7 {[%emt 0:00:07]} 22. O-O-O {[%emt 0:02:20]} Be6 {[%emt 0:04:30]} 23. Kb2 {[%emt 0:00:55]} Bc4 {[%emt 0:05:38]} 24. Bxc4 {[%emt 0:00:23]} bxc4 {[%emt 0:00:04]} 25. Nd2 {[%emt 0:02:06]} b5 {[%emt 0:01:44]} 26. Ne4 {[%emt 0:00:14]} Rb6 {[%emt 0:00:12]} 27. Rh3 {[%emt 0:01:30]} f5 {[%emt 0:02:38]} 28. Rg3+ {[%emt 0:00:45]} Ng6 {[%emt 0:00:53]} 29. Nc5 {[%emt 0:01:13]} Re8 {[%emt 0:04:53]} 30. Rg5 {[%emt 0:00:20]} Rf6 {[%emt 0:00:48]} 31. Nd7 {[%emt 0:01:18]} Ra6 {[%emt 0:00:17]} 32. Rxf5 {[%emt 0:00:19]} Rea8 {[%emt 0:00:30]} 33. Nf6+ {[%emt 0:00:21]} Kg7 {[%emt 0:01:18]} 34. Nxh5+ {[%emt 0:00:29]} Kh6 {[%emt 0:00:08]} 35. Ra1 {[%emt 0:01:42]} Rd6 {[%emt 0:00:43]} 36. Kc2 {[%emt 0:00:54]} Rad8 {[%emt 0:00:53]} 37. Re1 {[%emt 0:00:19]} Rd2+ {[%emt 0:00:49]} 38. Kb1 {[%emt 0:00:11]} Ra8 {[%emt 0:00:38]} 39. Ng3 {[%emt 0:01:11]} Rdxa2 {[%emt 0:01:39]} 40. Rh5+ {[%emt 0:00:31]} Kg7 {[%emt 0:00:06]} 0-1